fUSD/lending_fUSD_20240521
["ID","MTS","AMOUNT","RATE_DAILY","PERIOD"]
[327677212,1716308341148,-278.79025921,0.00041,60]
[327677213,1716308341175,-500.0,0.00041,120]
[327677214,1716308341200,-1000.0,0.00041095,30]
[327677215,1716308341224,-1000.0,0.00041095,30]
[327677216,1716308341252,-682.5646295,0.00041095,30]
[327677217,1716308341280,-153.014319,0.00041227,30]
[327677218,1716308341305,-201.822267,0.00041227,30]
[327677219,1716308341329,-150.0,0.000414,31]
[327677220,1716308341353,-503.54,0.00041573,30]
[327677221,1716308341381,-2030.0,0.000417,30]
[327677222,1716308341404,-201.822267,0.00041851,30]
[327677223,1716308341426,-692.37580432,0.000419,111]
[327677224,1716308341449,-150.0,0.000419,31]
[327677225,1716308341472,-752.73259627,0.00042,120]
[327677226,1716308341494,-500.0,0.00042,120]
[327677227,1716308341517,-3146.764497,0.00042024,30]
[327677228,1716308341540,-9517.00699,0.00042024,30]
[327677229,1716308341563,-12587.057987,0.00042024,30]
[327677230,1716308341585,-858.507705,0.00042024,30]
[327677231,1716308341607,-183.502475,0.00042024,30]
[327677232,1716308341634,-169.616618,0.00042024,30]
[327677233,1716308341656,-154.757108,0.00042024,30]
[327677234,1716308341678,-5173.76119,0.00042024,30]
[327677235,1716308341700,-2183.639369,0.00042024,30]
[327677236,1716308341723,-150.208945,0.00042024,30]
[327677237,1716308341745,-150.0,0.00042338,120]
[327677238,1716308341767,-322.89,0.000424,120]
[327677239,1716308341788,-150.0,0.000424,32]
[327677240,1716308341809,-1651.26984567,0.00042424,31]
[327677241,1716308341831,-153.014319,0.00042476,30]
[327677242,1716308341853,-201.822267,0.00042476,30]
[327677243,1716308341876,-3146.764497,0.00042549,30]
[327677244,1716308341899,-9517.00699,0.00042549,30]
[327677245,1716308341923,-12587.057987,0.00042549,30]
[327677246,1716308341946,-858.507705,0.00042549,30]
[327677247,1716308341968,-5173.76119,0.00042549,30]
[327677248,1716308341992,-2183.639369,0.00042549,30]
[327677249,1716308342014,-150.208945,0.00042549,30]
[327677250,1716308342036,-773.0,0.00042614,30]
[327677251,1716308342059,-483.0,0.00042614,30]
[327677252,1716308342081,-2022.0,0.000427,92]
[327677253,1716308342104,-169.616618,0.00042724,30]
[327677254,1716308342128,-154.757108,0.00042724,30]
[327677255,1716308342158,-536.47,0.00042869,30]
[327677256,1716308342180,-536.47,0.00042869,30]
[327677257,1716308342205,-536.47,0.00042869,30]
[327677258,1716308342228,-536.47,0.00042869,30]
[327677259,1716308342251,-150.0,0.000429,32]
[327677260,1716308342417,-861.37395719,0.00043,120]
[327677261,1716308342439,-952.38613465,0.00043,30]
[327677262,1716308342461,-5000.0,0.00043,120]
[327677263,1716308342483,-773.0,0.00043053,30]
[327677264,1716308342507,-483.0,0.00043053,30]
[327677265,1716308342531,-3146.764497,0.00043074,30]
[327677266,1716308342554,-9517.00699,0.00043074,30]
[327677267,1716308342576,-12587.057987,0.00043074,30]
[327677268,1716308342600,-858.507705,0.00043074,30]
[327677269,1716308342624,-5173.76119,0.00043074,30]
[327677270,1716308342648,-2183.639369,0.00043074,30]
[327677271,1716308342672,-150.208945,0.00043074,30]
[327677272,1716308342694,-201.822267,0.00043101,30]
[327677273,1716308342717,-536.47,0.00043142,30]
[327677274,1716308342741,-536.47,0.00043142,30]
[327677275,1716308342764,-150.0,0.00043238,120]
[327677276,1716308342789,-150.0,0.00043244,120]
[327677277,1716308342813,-150.0,0.000434,33]
[327677278,1716308342836,-536.47,0.00043415,30]
[327677279,1716308342859,-536.47,0.00043415,30]
[327677280,1716308342886,-169.616618,0.00043424,30]
[327677281,1716308342910,-154.757108,0.00043424,30]
[327677282,1716308342934,-773.0,0.00043492,30]
[327677283,1716308342958,-483.0,0.00043492,30]
[327677284,1716308342981,-150.0,0.00043517,120]
[327677285,1716308343004,-3146.764497,0.00043599,30]
[327677286,1716308343027,-9517.00699,0.00043599,30]
[327677287,1716308343050,-12587.057987,0.00043599,30]
[327677288,1716308343072,-858.507705,0.00043599,30]
[327677289,1716308343096,-5173.76119,0.00043599,30]
[327677290,1716308343121,-2183.639369,0.00043599,30]
[327677291,1716308343147,-150.208945,0.00043599,30]
[327677292,1716308343169,-536.47,0.00043689,30]
[327677293,1716308343193,-536.47,0.00043689,30]
[327677294,1716308343217,-153.014319,0.00043725,30]
[327677295,1716308343241,-201.822267,0.00043725,30]
[327677296,1716308343264,-486.0,0.000438,31]
[327677297,1716308343288,-150.0,0.00043891,120]
[327677298,1716308343310,-150.0,0.000439,33]
[327677299,1716308343332,-773.0,0.00043932,30]
[327677300,1716308343354,-541.33075195,0.00043932,30]
[327677301,1716308343377,-869.26621101,0.00043932,30]
[327677302,1716308343399,-483.0,0.00043932,30]
[327677303,1716308343422,-1123.1469672,0.00043932,30]
[327677304,1716308343444,-536.47,0.00043962,30]
[327677305,1716308343466,-536.47,0.00043962,30]
[327677306,1716308343490,-114545.61590492,0.00044,120]
[327677307,1716308343513,-1050.0,0.00044,120]
[327677308,1716308343537,-607.84717865,0.00044,30]
[327677309,1716308343559,-1000.0,0.00044,120]
[327677310,1716308343583,-150.0,0.00044,44]
[327677311,1716308343606,-3146.764497,0.00044125,30]
[327677312,1716308343629,-9517.00699,0.00044125,30]
[327677313,1716308343651,-12587.057987,0.00044125,30]
[327677314,1716308343675,-858.507705,0.00044125,30]
[327677315,1716308343698,-5173.76119,0.00044125,30]
[327677316,1716308343720,-2183.639369,0.00044125,30]
[327677317,1716308343742,-150.208945,0.00044125,30]
[327677318,1716308343765,-169.616618,0.00044125,30]
[327677319,1716308343788,-154.757108,0.00044125,30]
[327677320,1716308343811,-536.47,0.00044235,30]
[327677321,1716308343834,-536.47,0.00044235,30]
[327677322,1716308343873,-773.0,0.00044371,30]
[327677323,1716308343899,-483.0,0.00044371,30]
[327677324,1716308343924,-150.0,0.000444,34]
[327677325,1716308343949,-536.47,0.00044508,30]
[327677326,1716308343975,-536.47,0.00044508,30]
[327677327,1716308344002,-536.47,0.00044781,30]
[327677328,1716308344028,-536.47,0.00044781,30]
[327677329,1716308344052,-1751.76099966,0.000448,120]
[327677330,1716308344076,-208.04609787,0.000448,120]
[327677331,1716308344102,-773.0,0.0004481,30]
[327677332,1716308344126,-483.0,0.0004481,30]
[327677333,1716308344153,-275.22623116,0.000449,120]
[327677334,1716308344177,-290.0,0.000449,30]
[327677335,1716308344202,-150.0,0.000449,34]
[327677336,1716308344228,-391.52999303,0.00045,30]
[327677337,1716308344254,-200.0,0.00045,120]
[327677338,1716308344277,-195.71369723,0.00045,120]
[327677339,1716308344301,-151.0,0.00045,120]
[327677340,1716308344324,-950.0,0.00045,120]
[327677341,1716308344347,-151.0,0.00045,120]
[327677342,1716308344372,-150.0,0.00045,85]
[327677343,1716308344396,-863.74720473,0.00045,45]
[327677344,1716308344419,-417.77168852,0.00045,30]
[327677345,1716308344441,-224.96813632,0.00045,35]
[327677346,1716308344465,-428.82558961,0.00045,30]
[327677347,1716308344489,-410.0,0.00045,120]
[327677348,1716308344513,-757.2849989,0.00045,120]
[327677349,1716308344544,-500.0,0.00045,120]
[327677350,1716308344569,-2413.20896745,0.00045,120]
[327677351,1716308344596,-500.0,0.00045,120]
[327677352,1716308344976,-10146.34247263,0.00045,32]
[327677353,1716308345001,-210.0,0.0004503,30]
[327677354,1716308345024,-200.0,0.00045043,120]
[327677355,1716308345048,-208.0,0.0004505,30]
[327677356,1716308345072,-220.0,0.0004505,30]
[327677357,1716308345095,-536.47,0.00045055,30]
[327677358,1716308345117,-536.47,0.00045055,30]
[327677359,1716308345148,-503.54,0.00045118,30]
[327677360,1716308345172,-216.5671,0.0004514,30]
[327677361,1716308345197,-773.0,0.00045249,30]
[327677362,1716308345221,-483.0,0.00045249,30]
[327677363,1716308345244,-536.47,0.00045328,30]
[327677364,1716308345268,-536.47,0.00045328,30]
[327677365,1716308345293,-234.241495,0.000454,35]
[327677366,1716308345316,-536.47,0.00045601,30]
[327677367,1716308345338,-536.47,0.00045601,30]
[327677368,1716308345363,-151.0,0.00045699,120]
[327677369,1716308345389,-327.79462316,0.000457,90]
[327677370,1716308345413,-150.0,0.00045707,120]
[327677371,1716308345436,-500.0,0.00045972,30]
[327677372,1716308345459,-500.0,0.00045972,30]
[327677373,1716308345483,-4448.4,0.00045977,111]
[327677374,1716308345506,-850.0,0.00046,120]
[327677375,1716308345530,-175.551,0.00046,120]
[327677376,1716308345554,-1006.0,0.00046,60]
[327677377,1716308345580,-176.12,0.00046,96]
[327677378,1716308345605,-10000.0,0.00046,120]
[327677379,1716308345630,-151.0,0.00046164,120]
[327677380,1716308345654,-500.0,0.00046246,30]
[327677381,1716308345676,-151.0,0.00046384,120]
[327677382,1716308345701,-210.0,0.0004643,30]
[327677383,1716308345725,-208.0,0.0004644,30]
[327677384,1716308345748,-220.0,0.0004644,30]
[327677385,1716308345772,-500.0,0.0004652,30]
[327677386,1716308345796,-500.0,0.0004652,30]
[327677387,1716308345821,-478.93062038,0.00046575,120]
[327677388,1716308345845,-500.89936774,0.00046575,31]
[327677389,1716308345868,-2000.0,0.00046575,30]
[327677390,1716308346494,3127.0,0.00046505,120]
[327677391,1716308346954,216.0,0.00046505,120]
[327677392,1716308347391,164.0,0.00046505,120]
[327677472,1716308351708,1000.0,0.00038904,120]
[327677529,1716308353305,391.12842448,0.0004001,30]
[327677593,1716308357232,415.089,0.0004001,30]
[327677595,1716308364925,1630.26488009,0.00032978,120]
[327677597,1716308371021,10103.38,0.00013973,2]
[327677598,1716308371926,615.08462455,0.000389,30]
[327677599,1716308372364,800.79154046,0.00045,30]
[327677600,1716308373613,288.84866534,0.00046505,120]
[327677601,1716308381986,2100.0,0.00046505,30]
[327677605,1716308389567,174.15224679,0.00046505,120]
[327677606,1716308389934,758.96776184,0.000389,30]
[327677649,1716308418784,-500.0,0.00045972,30]
[327677650,1716308418809,-500.0,0.00045972,30]
[327677651,1716308418834,-500.0,0.00046246,30]
[327677652,1716308418918,-215.97732135,0.00046505,30]
[327677653,1716308418944,-500.0,0.0004652,30]
[327677654,1716308418968,-215.18422548,0.0004658,90]
[327677655,1716308418992,-150.0,0.00046679,120]
[327677656,1716308419016,-500.0,0.00046794,30]
[327677657,1716308419040,-150.0,0.000468,30]
[327677658,1716308419063,-693.55,0.000468,60]
[327677659,1716308419086,-250.45099112,0.0004699,120]
[327677660,1716308419109,-750.0,0.00047,120]
[327677661,1716308419132,-947.77099059,0.00047,120]
[327677662,1716308419155,-500.0,0.00047068,30]
[327677663,1716308419183,-151.0,0.00047068,120]
[327677664,1716308419208,-150.0,0.00047106,30]
[327677665,1716308419232,-150.0,0.00047191,120]
[327677666,1716308419257,-463.3416,0.00047288,30]
[327677667,1716308419280,-366.63382581,0.000473,120]
[327677668,1716308419302,-151.0,0.00047315,120]
[327677669,1716308419325,-500.0,0.00047342,30]
[327677670,1716308419349,-150.0,0.00047358,120]
[327677671,1716308419374,-150.0,0.00047412,30]
[327677672,1716308419397,-695.40008798,0.0004748,120]
[327677673,1716308419421,-463.3416,0.00047488,30]
[327677674,1716308419446,-500.0,0.00047616,30]
[327677675,1716308419469,-463.3416,0.00047688,30]
[327677676,1716308419492,-200.0,0.00047698,120]
[327677677,1716308419515,-150.0,0.00047718,30]
[327677678,1716308419539,-151.0,0.00047753,120]
[327677679,1716308419562,-200.0,0.0004778,120]
[327677680,1716308419586,-210.0,0.0004782,30]
[327677681,1716308419609,-208.0,0.0004783,30]
[327677682,1716308419633,-220.0,0.0004783,30]
[327677683,1716308419656,-463.3416,0.00047888,30]
[327677684,1716308419678,-500.0,0.0004789,30]
[327677685,1716308419704,-1442.31868842,0.00048,90]
[327677686,1716308419726,-650.0,0.00048,120]
[327677687,1716308419749,-587.31555605,0.00048,120]
[327677688,1716308419771,-214.17886709,0.00048,120]
[327677689,1716308419795,-570.3592049,0.00048,120]
[327677690,1716308419817,-500.0,0.00048,120]
[327677691,1716308419840,-446.0,0.00048,120]
[327677692,1716308419864,-150.0,0.00048024,30]
[327677693,1716308419891,-500.0,0.00048164,30]
[327677694,1716308419914,-463.3416,0.00048288,30]
[327677695,1716308419940,-150.0,0.00048329,30]
[327677696,1716308419964,-200.0,0.000484,120]
[327677697,1716308419987,-500.0,0.00048438,30]
[327677698,1716308420019,-151.0,0.00048438,120]
[327677699,1716308420042,-151.0,0.00048466,120]
[327677700,1716308420065,-463.3416,0.00048488,30]
[327677701,1716308420089,-153.96656613,0.000485,120]
[327677702,1716308420114,-152.880302,0.000485,54]
[327677703,1716308420138,-150.0,0.00048635,30]
[327677704,1716308420164,-503.54,0.00048664,90]
[327677705,1716308420194,-463.3416,0.00048688,30]
[327677706,1716308420218,-800000.0,0.0004869,120]
[327677707,1716308420241,-500.0,0.00048712,30]
[327677708,1716308420267,-260.0,0.000488,120]
[327677709,1716308420290,-262.0,0.000488,120]
[327677710,1716308420313,-643.12620195,0.000488,30]
[327677711,1716308420337,-316.53159298,0.000488,120]
[327677712,1716308420359,-463.3416,0.00048888,30]
[327677713,1716308420382,-408.0,0.0004889,120]
[327677714,1716308420403,-641.91094774,0.000489,30]
[327677715,1716308420425,-155.603745,0.00048906,30]
[327677716,1716308420451,-155.603744,0.00048906,30]
[327677717,1716308420473,-150.0,0.00048941,30]
[327677718,1716308420494,-500.0,0.00048986,30]
[327677719,1716308420516,-1000.0,0.00048999,120]
[327677720,1716308420539,-550.0,0.00049,120]
[327677721,1716308420561,-733.96579407,0.00049,30]
[327677722,1716308420584,-332.27097692,0.00049,120]
[327677723,1716308420608,-257.5818709,0.00049,60]
[327677724,1716308420634,-151.0,0.00049123,120]
[327677725,1716308420658,-726.37526578,0.000492,120]
[327677726,1716308420681,-210.0,0.0004921,30]
[327677727,1716308420706,-208.0,0.0004922,30]
[327677728,1716308420728,-220.0,0.0004922,30]
[327677729,1716308420749,-150.0,0.00049247,30]
[327677730,1716308420773,-4852.8,0.00049254,117]
[327677731,1716308420797,-500.0,0.0004926,30]
[327677732,1716308420820,-987.11921349,0.00049315,120]
[327677733,1716308420843,-480.57065647,0.00049315,120]
[327677734,1716308420868,-375.0,0.00049315,120]
[327677735,1716308420891,-1000.0,0.00049315,60]
[327677738,1716308555480,156.34,0.00013973,2]
[327677739,1716308711010,185765.53188413,0.00013973,2]
[327677740,1716308711037,359979.28992822,0.00013973,2]
[327677741,1716308724614,20108.9598689,0.00013973,2]
[327677742,1716308725503,179.76461893,0.00013973,2]
[327677743,1716308731075,15998.7666519,0.00013973,2]
[327677744,1716308735543,4951.58491764,0.00013973,2]
[327677745,1716308740331,5978.66735625,0.00013973,2]
[327677752,1716308946117,-973.4129822,0.00017171,2]
[327677753,1716308946139,-4086.423711,0.00017172,2]
[327677754,1716308946160,-300.0,0.00017258,2]
[327677755,1716308946182,-11616.05481592,0.00017259,2]
[327677756,1716308946203,-420.0,0.00018845,2]
[327677757,1716308946224,-216.31009005,0.00020577,2]
[327677763,1716309031604,-1125.55808343,0.00019451,2]
[327677770,1716309031710,-0.12128943,0.00019451,2]
[327677771,1716309031722,-689.30241408,0.00019451,2]
[327677772,1716309031764,-1295.95865689,0.00019451,2]
[327677773,1716309031777,-2499.33301702,0.00019451,2]
[327677774,1716309031789,-2359.58374539,0.00019451,2]
[327677775,1716309031802,-544.86452553,0.00019451,2]
[327677776,1716309031815,-387.51100691,0.00019451,2]
[327677777,1716309031828,-900.37502554,0.00019451,2]
[327677778,1716309031842,-696.77431602,0.00019451,2]
[327677780,1716309032131,-452.75892829,0.00019451,2]
[327677781,1716309032179,-1359.60269171,0.00019451,2]
[327677782,1716309032191,-4698.92261733,0.00019451,2]
[327677783,1716309032203,-650.01339646,0.00019451,2]
[327677784,1716309032220,-1837.79442755,0.00019451,2]
[327677785,1716309032229,-259.65990995,0.00020577,2]
[327677786,1716309032239,-147.98146314,0.00020577,2]
[327677787,1716309032250,-2.01853686,0.00020577,2]
[327677788,1716309032260,-192.31875546,0.00020577,2]
[327677789,1716309032269,-476.12083397,0.00023,2]
[327677790,1716309032280,-286.18192272,0.00023,2]
[327677791,1716309032297,-2184.30272845,0.00023,2]
[327677792,1716309032306,-182.56,0.00029037,2]
[327677793,1716309032316,-250.0,0.00029727,2]
[327677794,1716309032326,-912.78,0.00029765,2]
[327677795,1716309032337,-700.01,0.00029768,2]
[327677796,1716309032347,-250.0,0.00029804,2]
[327677797,1716309032357,-600.0,0.00029844,2]
[327677798,1716309032366,-1852.42,0.00029906,2]
[327677799,1716309032376,-893.71,0.00029927,2]
[327677800,1716309032385,-237.33,0.00029943,2]
[327677801,1716309032399,-250.0,0.00029979,2]
[327677802,1716309032408,-16185.99,0.00030077,2]
[327677803,1716309032418,-155.05,0.00030093,2]
[327677804,1716309032428,-250.0,0.000301,15]
[327677805,1716309032439,-1291.4,0.0003014,2]
[327677806,1716309032448,-1804.91,0.0003028,2]
[327677807,1716309032461,-200.0,0.00030391,2]
[327677808,1716309032472,-400.0,0.00030568,2]
[327677809,1716309032485,-150.0,0.00030639,2]
[327677810,1716309032495,-200.598,0.000315,2]
[327677811,1716309032504,-1000.0,0.000316,2]
[327677812,1716309032514,-400.0,0.000324,11]
[327677813,1716309032523,-1000.0,0.000324,7]
[327677814,1716309032532,-545.2909,0.00032476,2]
[327677815,1716309032542,-210.6547,0.00032476,2]
[327677816,1716309032552,-3243.99992839,0.00032476,2]
[327677817,1716309032564,-3071.92,0.00032476,2]
[327677818,1716309032577,-434.33736611,0.00032476,2]
[327677819,1716309032612,-2585.03393547,0.00032476,2]
[327677820,1716309032624,-1007.71811066,0.00032476,2]
[327677821,1716309032636,-298.12958754,0.00032476,2]
[327677822,1716309032647,-1852.68031697,0.00032476,2]
[327677823,1716309032657,-800.0,0.000325,11]
[327677824,1716309032666,-3405.35362113,0.000325,2]
[327677825,1716309032676,-321.24,0.00032566,3]
[327677826,1716309032686,-2192.36025553,0.00032576,2]
[327677827,1716309036020,158.25,0.00013973,2]
[327677830,1716309037569,-412.07757378,0.00028014,2]
[327677831,1716309037581,-138.86242622,0.00028014,2]
[327677832,1716309037591,-334.47593638,0.00030278,2]
[327677833,1716309037602,-216.46406362,0.00030278,2]
[327677834,1716309037611,-309.97882222,0.00032541,2]
[327677835,1716309037623,-240.96117778,0.00032541,2]
[327677836,1716309037632,-2739.54916315,0.00032576,2]
[327677837,1716309037644,-486.83097929,0.00032576,2]
[327677838,1716309037655,-324.95664198,0.00032576,2]
[327677839,1716309037667,-473.64023874,0.00032576,2]
[327677840,1716309037772,-1320.553946,0.00032576,2]
[327677841,1716309037783,-3067.82712841,0.00032576,2]
[327677842,1716309037798,-977.69249947,0.00032576,2]
[327677843,1716309037810,-708.7166173,0.00032576,2]
[327677844,1716309037821,-87707.87253013,0.00032576,2]
[327677845,1716309037829,-90215.2377,0.00032576,2]
[327677846,1716309037839,-1200.0,0.000326,11]
[327677847,1716309037847,-500.0,0.00032634,2]
[327677848,1716309037856,-1600.0,0.000327,11]
[327677849,1716309037865,-153.15,0.00032735,2]
[327677850,1716309037874,-12493.81924514,0.00032745,2]
[327677851,1716309037883,-3405.3536211,0.00032767,2]
[327677852,1716309037892,-1000.0,0.00032776,2]
[327677853,1716309037901,-3762.8056,0.00032776,2]
[327677854,1716309037910,-168.73715166,0.00032776,2]
[327677855,1716309037919,-165.42920419,0.00032776,4]
[327677856,1716309037929,-270.40753073,0.00032776,6]
[327677857,1716309037938,-2100.0,0.000328,11]
[327677858,1716309037947,-1553.64482,0.0003282,2]
[327677859,1716309037956,-168.73715165,0.00032838,2]
[327677860,1716309037966,-270.40753072,0.00032838,6]
[327677861,1716309037975,-153.15,0.00032866,2]
[327677862,1716309037984,-635.74496432,0.00032876,6]
[327677863,1716309037993,-503.5815367,0.00032876,6]
[327677864,1716309038002,-261.95718305,0.00032876,6]
[327677865,1716309038012,-500.0,0.00032876,6]
[327677866,1716309038021,-530.86186744,0.00032876,6]
[327677868,1716309038030,-500.0,0.00032876,6]
[327677869,1716309038039,-515.24284487,0.00032876,6]
[327677870,1716309038048,-345.45250035,0.00032876,6]
[327677871,1716309038058,-200.83020031,0.00032876,6]
[327677872,1716309038067,-500.0,0.00032876,6]
[327677874,1716309038076,-500.0,0.00032876,6]
[327677876,1716309038084,-500.0,0.00032876,6]
[327677877,1716309038094,-500.0,0.00032876,6]
[327677878,1716309038103,-502.91,0.00032876,6]
[327677879,1716309038112,-685.81,0.00032876,6]
[327677880,1716309038121,-621.8,0.00032876,6]
[327677881,1716309038130,-500.0,0.00032876,6]
[327677882,1716309038139,-500.0,0.00032876,6]
[327677883,1716309038148,-500.0,0.00032876,6]
[327677884,1716309038157,-500.0,0.00032876,6]
[327677885,1716309038166,-500.0,0.00032876,6]
[327677886,1716309038176,-500.0,0.00032876,6]
[327677887,1716309038185,-479.48435486,0.00032876,6]
[327677888,1716309038194,-500.0,0.00032876,6]
[327677889,1716309038203,-500.0,0.00032876,6]
[327677890,1716309038211,-500.0,0.00032876,6]
[327677891,1716309038221,-682.96,0.00032876,6]
[327677892,1716309038230,-500.0,0.00032876,6]
[327677893,1716309038239,-500.0,0.00032876,6]
[327677894,1716309038249,-500.0,0.00032876,6]
[327677895,1716309038258,-500.0,0.00032876,6]
[327677896,1716309038267,-500.0,0.00032876,6]
[327677897,1716309038276,-500.0,0.00032876,6]
[327677898,1716309038285,-578.44,0.00032876,6]
[327677899,1716309038294,-500.0,0.00032876,6]
[327677900,1716309038303,-500.0,0.00032876,6]
[327677901,1716309038312,-500.0,0.00032876,6]
[327677902,1716309038321,-500.0,0.00032876,6]
[327677903,1716309038331,-500.0,0.00032876,6]
[327677904,1716309038339,-500.0,0.00032876,6]
[327677905,1716309038349,-500.0,0.00032876,6]
[327677906,1716309038358,-500.0,0.00032876,6]
[327677907,1716309038367,-500.0,0.00032876,6]
[327677908,1716309038376,-500.0,0.00032876,6]
[327677909,1716309038385,-621.71,0.00032876,6]
[327677910,1716309038395,-192.4929016,0.00032876,6]
[327677911,1716309038405,-529.56,0.00032876,6]
[327677912,1716309038416,-958.49,0.00032876,6]
[327677913,1716309038425,-500.0,0.00032876,6]
[327677914,1716309038435,-706.04,0.00032876,6]
[327677915,1716309038444,-500.0,0.00032876,6]
[327677916,1716309038453,-500.0,0.00032876,6]
[327677917,1716309038462,-500.0,0.00032876,6]
[327677918,1716309038471,-508.01103584,0.00032876,6]
[327677919,1716309038482,-562.64,0.00032876,6]
[327677920,1716309038493,-500.0,0.00032876,6]
[327677921,1716309038502,-500.0,0.00032876,6]
[327677922,1716309038511,-500.0,0.00032876,6]
[327677923,1716309038520,-500.0,0.00032876,6]
[327677924,1716309038530,-644.17715937,0.00032876,6]
[327677925,1716309038539,-559.35,0.00032876,6]
[327677926,1716309038548,-500.0,0.00032876,6]
[327677927,1716309038557,-500.0,0.00032876,6]
[327677928,1716309038567,-500.0,0.00032876,6]
[327677929,1716309038577,-500.0,0.00032876,6]
[327677930,1716309038586,-500.0,0.00032876,6]
[327677931,1716309038595,-500.0,0.00032876,6]
[327677932,1716309038605,-500.0,0.00032876,6]
[327677933,1716309038614,-611.85,0.00032876,6]
[327677934,1716309038623,-500.0,0.00032876,6]
[327677935,1716309038632,-500.0,0.00032876,6]
[327677936,1716309038641,-500.0,0.00032876,6]
[327677937,1716309038651,-593.84,0.00032876,6]
[327677938,1716309038660,-606.67,0.00032876,6]
[327677939,1716309038669,-500.0,0.00032876,6]
[327677940,1716309038678,-500.0,0.00032876,6]
[327677941,1716309038687,-500.0,0.00032876,6]
[327677942,1716309038696,-500.0,0.00032876,6]
[327677943,1716309038705,-512.13,0.00032876,6]
[327677944,1716309038714,-500.0,0.00032876,6]
[327677945,1716309038723,-500.0,0.00032876,6]
[327677946,1716309038732,-500.0,0.00032876,6]
[327677947,1716309038741,-500.0,0.00032876,6]
[327677948,1716309038750,-500.0,0.00032876,6]
[327677949,1716309038759,-500.0,0.00032876,6]
[327677950,1716309038768,-503.93,0.00032876,6]
[327677951,1716309038778,-500.0,0.00032876,6]
[327677952,1716309038787,-500.0,0.00032876,6]
[327677953,1716309038796,-724.95,0.00032876,6]
[327677954,1716309038804,-658.38,0.00032876,6]
[327677955,1716309038813,-1009.3,0.00032876,6]
[327677956,1716309038822,-500.0,0.00032876,6]
[327677957,1716309038831,-606.91,0.00032876,6]
[327677958,1716309038840,-500.0,0.00032876,6]
[327677959,1716309038849,-2006.42,0.00032876,6]
[327677960,1716309038858,-500.0,0.00032876,6]
[327677961,1716309038867,-500.0,0.00032876,6]
[327677962,1716309038876,-512.51761095,0.00032876,6]
[327677963,1716309038885,-500.0,0.00032876,6]
[327677964,1716309038894,-500.0,0.00032876,6]
[327677965,1716309038903,-532.38947804,0.00032876,6]
[327677966,1716309038911,-579.6,0.00032876,6]
[327677967,1716309038921,-500.0,0.00032876,6]
[327677968,1716309038930,-591.43,0.00032876,6]
[327677969,1716309038939,-500.0,0.00032876,6]
[327677970,1716309038948,-785.84,0.00032876,6]
[327677971,1716309038957,-500.0,0.00032876,6]
[327677972,1716309038967,-500.0,0.00032876,6]
[327677973,1716309038976,-500.0,0.00032876,6]
[327677974,1716309038985,-531.37692337,0.00032876,6]
[327677975,1716309038994,-500.0,0.00032876,6]
[327677976,1716309039003,-500.0,0.00032876,6]
[327677977,1716309039012,-500.0,0.00032876,6]
[327677978,1716309039022,-576.09,0.00032876,6]
[327677979,1716309039031,-500.0,0.00032876,6]
[327677980,1716309039041,-500.0,0.00032876,6]
[327677981,1716309039050,-524.38,0.00032876,6]